[Event "1st Grandiscacchi Cattolica 2022"]
[Site "Cattolica"]
[Date "2022.03.05"]
[Round "6.10"]
[White "Willow, Jonah B"]
[Black "Nikolov, Momchil"]
[Result "1/2-1/2"]
[ECO "A46"]
[WhiteElo "2365"]
[BlackElo "2501"]
[Annotator "ChessBase"]
[PlyCount "79"]
[EventDate "2022.03.03"]
[EventType "swiss"]
[EventCountry "ITA"]
[SourceTitle "playchess.com"]
[Source "ChessBase"]
[SourceQuality "1"]
[TimeControl "5400+30"]

1. Nf3 {[%emt 0:02:35]} Nf6 {[%emt 0:04:38]} 2. g3 {[%emt 0:00:08]} b5 {[%emt 0:01:21]} 3. Bg2 {[%emt 0:02:18]} Bb7 {[%emt 0:00:08]} 4. O-O {[%emt 0:01:58]} c5 {[%emt 0:00:57]} 5. d4 {[%emt 0:06:00]} e6 {[%emt 0:04:37]} 6. Nbd2 {[%emt 0:08:53]} cxd4 {[%emt 0:05:29]} 7. Nb3 {[%emt 0:00:54]} Be7 {[%emt 0:01:06]} 8. Nbxd4 {[%emt 0:01:56]} a6 {[%emt 0:00:59]} 9. a4 {[%emt 0:04:14]} b4 {[%emt 0:00:20]} 10. a5 {[%emt 0:00:15]} O-O {[%emt 0:01:57]} 11. Nb3 {[%emt 0:04:33]} Be4 {[%emt 0:08:03]} 12. Nbd2 {[%emt 0:06:09]} Bb7 {[%emt 0:07:51]} 13. Nc4 {[%emt 0:06:17]} Bc5 {[%emt 0:07:10]} 14. Be3 {[%emt 0:03:11]} Bxe3 {[%emt 0:00:36]} 15. Nxe3 {[%emt 0:00:03]} Nc6 {[%emt 0:52:48]} 16. Nc4 {[%emt 0:07:47]} d5 {[%emt 0:00:00]} 17. Nce5 {[%emt 0:01:24]} Rc8 {[%emt 0:00:00]} 18. Nxc6 {[%emt 0:01:55]} Bxc6 {[%emt 0:00:00]} 19. Nd4 {[%emt 0:05:33]} Bd7 {[%emt 0:00:00]} 20. f4 {[%emt 0:03:17]} Rc5 {[%emt 0:00:00]} 21. Qd2 {[%emt 0:01:10]} Qb8 {[%emt 0:00:00]} 22. e3 {[%emt 0:09:52]} Rfc8 {[%emt 0:00:00]} 23. Rfc1 {[%emt 0:02:14]} h6 {[%emt 0:00:00]} 24. Qd3 {[%emt 0:01:16]} Qb7 {[%emt 0:00:00]} 25. Bf1 {[%emt 0:00:17]} Ra8 {[%emt 0:00:00]} 26. Qb3 {[%emt 0:00:40]} Rc7 {[%emt 0:00:00]} 27. c3 {[%emt 0:02:32]} bxc3 {[%emt 0:00:00]} 28. Rxc3 {[%emt 0:00:21]} Ne4 {[%emt 0:00:00]} 29. Qxb7 {[%emt 0:01:17]} Rxb7 {[%emt 0:00:00]} 30. Rb3 {[%emt 0:00:05]} Rxb3 {[%emt 0:00:00]} 31. Nxb3 {[%emt 0:00:01]} Nd6 {[%emt 0:00:00]} 32. Nd4 {[%emt 0:03:04]} Nc4 {[%emt 0:00:00]} 33. e4 {[%emt 0:02:50]} Nxb2 {[%emt 0:00:00]} 34. exd5 {[%emt 0:00:06]} exd5 {[%emt 0:00:00]} 35. Bg2 {[%emt 0:00:26]} Rb8 {[%emt 0:01:55]} 36. Rb1 {[%emt 0:03:28]} Rb4 {[%emt 0:00:38]} 37. Nc2 {[%emt 0:00:08]} Rb5 {[%emt 0:00:41]} 38. Nd4 {[%emt 0:00:44]} Rb4 {[%emt 0:00:35]} 39. Nc2 {[%emt 0:00:07]} Rb5 {[%emt 0:04:37]} 40. Nd4 {[%emt 0:00:14]} 1/2-1/2

[Event "1st Grandiscacchi Cattolica 2022"]
[Site "Cattolica"]
[Date "2022.03.06"]
[Round "7.4"]
[White "Nesterov, Arseniy"]
[Black "Akshat, Khamparia"]
[Result "1-0"]
[ECO "D10"]
[WhiteElo "2522"]
[BlackElo "2390"]
[Annotator "ChessBase"]
[PlyCount "87"]
[EventDate "2022.03.03"]
[EventType "swiss"]
[EventCountry "ITA"]
[SourceTitle "playchess.com"]
[Source "ChessBase"]
[SourceQuality "1"]
[TimeControl "5400+30"]

1. d4 {[%emt 0:00:06]} d5 {[%emt 0:03:13]} 2. c4 {[%emt 0:00:15]} dxc4 {[%emt 0:00:16]} 3. e4 {[%emt 0:01:25]} b5 {[%emt 0:02:35]} 4. a4 {[%emt 0:04:39]} c6 {[%emt 0:01:11]} 5. Nc3 {[%emt 0:17:47]} b4 {[%emt 0:00:45]} 6. Na2 {[%emt 0:01:05]} Nf6 {[%emt 0:01:16]} 7. e5 {[%emt 0:01:47]} Nd5 {[%emt 0:00:08]} 8. Bxc4 {[%emt 0:00:06]} e6 {[%emt 0:03:40]} 9. Nf3 {[%emt 0:00:24]} Ba6 {[%emt 0:05:28]} 10. Qd3 {[%emt 0:04:58]} Bxc4 {[%emt 0:03:23]} 11. Qxc4 {[%emt 0:00:02]} Be7 {[%emt 0:00:17]} 12. O-O {[%emt 0:02:20]} O-O {[%emt 0:02:09]} 13. Bd2 {[%emt 0:00:16]} a5 {[%emt 0:01:01]} 14. Nc1 {[%emt 0:00:10]} Qb6 {[%emt 0:05:25]} 15. Bg5 {[%emt 0:00:43]} Na6 {[%emt 0:07:59]} 16. Nb3 {[%emt 0:00:28]} Rfd8 {[%emt 0:03:30]} 17. Rac1 {[%emt 0:01:30]} h6 {[%emt 0:02:29]} 18. Bxe7 {[%emt 0:01:20]} Nxe7 {[%emt 0:00:06]} 19. Qc2 {[%emt 0:01:23]} Rd5 {[%emt 0:03:01]} 20. Nfd2 {[%emt 0:01:02]} Qd8 {[%emt 0:01:31]} 21. Ne4 {[%emt 0:01:35]} c5 {[%emt 0:14:52]} 22. dxc5 {[%emt 0:01:27]} Rxe5 {[%emt 0:00:26]} 23. Rfd1 {[%emt 0:01:58]} Qc7 {[%emt 0:08:04]} 24. Nd6 {[%emt 0:01:10]} Qc6 {[%emt 0:11:01]} 25. h4 {[%emt 0:03:27]} Qxa4 {[%emt 0:01:04]} 26. Nc4 {[%emt 0:02:55]} Rxc5 {[%emt 0:02:52]} 27. Nxc5 {[%emt 0:00:41]} Qxc2 {[%emt 0:00:36]} 28. Rxc2 {[%emt 0:00:02]} Nxc5 {[%emt 0:00:07]} 29. Nb6 {[%emt 0:00:05]} Rb8 {[%emt 0:02:52]} 30. Rxc5 {[%emt 0:00:11]} Rxb6 {[%emt 0:00:04]} 31. Rd7 {[%emt 0:00:12]} Nd5 {[%emt 0:02:24]} 32. Rxa5 {[%emt 0:00:33]} Rb8 {[%emt 0:01:48]} 33. Raa7 {[%emt 0:01:08]} Rf8 {[%emt 0:00:05]} 34. h5 {[%emt 0:00:17]} Nf6 {[%emt 0:01:06]} 35. Rdb7 {[%emt 0:00:06]} Nxh5 {[%emt 0:00:43]} 36. Rxb4 {[%emt 0:00:06]} g5 {[%emt 0:00:17]} 37. Rba4 {[%emt 0:01:59]} Kg7 {[%emt 0:00:17]} 38. Ra8 {[%emt 0:00:07]} Nf4 {[%emt 0:00:28]} 39. b4 {[%emt 0:00:50]} Nd5 {[%emt 0:00:40]} 40. b5 {[%emt 0:00:13]} Rxa8 {[%emt 0:02:24]} 41. Rxa8 {[%emt 0:00:01]} Kf6 {[%emt 0:00:06]} 42. Ra7 {[%emt 0:01:15]} h5 {[%emt 0:00:58]} 43. Rd7 {[%emt 0:00:09]} Nb6 {[%emt 0:01:22]} 44. Rd6 {[%emt 0:00:06]} 1-0

[Event "1st Grandiscacchi Cattolica 2022"]
[Site "Cattolica"]
[Date "2022.03.06"]
[Round "7.5"]
[White "Davtyan, Artur"]
[Black "Sebenik, Matej"]
[Result "1/2-1/2"]
[ECO "D15"]
[WhiteElo "2460"]
[BlackElo "2510"]
[Annotator "ChessBase"]
[PlyCount "64"]
[EventDate "2022.03.03"]
[EventType "swiss"]
[EventCountry "ITA"]
[SourceTitle "playchess.com"]
[Source "ChessBase"]
[SourceQuality "1"]
[TimeControl "5400+30"]

1. d4 {[%emt 0:02:46]} d5 {[%emt 0:00:24]} 2. c4 {[%emt 0:00:25]} c6 {[%emt 0:00:33]} 3. Nf3 {[%emt 0:00:12]} Nf6 {[%emt 0:00:32]} 4. Nc3 {[%emt 0:00:17]} a6 {[%emt 0:00:52]} 5. c5 {[%emt 0:06:35]} g6 {[%emt 0:02:12]} 6. Bf4 {[%emt 0:04:55]} Nh5 {[%emt 0:02:33]} 7. Bg5 {[%emt 0:12:05]} h6 {[%emt 0:01:49]} 8. Bd2 {[%emt 0:10:13]} Bg7 {[%emt 0:01:25]} 9. h3 {[%emt 0:00:18]} O-O {[%emt 0:04:30]} 10. Qc1 {[%emt 0:02:06]} Kh7 {[%emt 0:00:58]} 11. e4 {[%emt 0:16:12]} dxe4 {[%emt 0:01:42]} 12. Nxe4 {[%emt 0:00:08]} Be6 {[%emt 0:03:54]} 13. Nc3 {[%emt 0:05:48]} Bd5 {[%emt 0:03:27]} 14. Nxd5 {[%emt 0:14:23]} cxd5 {[%emt 0:00:07]} 15. Bd3 {[%emt 0:03:17]} Nc6 {[%emt 0:02:39]} 16. O-O {[%emt 0:00:05]} Nxd4 {[%emt 0:29:04]} 17. Nxd4 {[%emt 0:02:24]} Bxd4 {[%emt 0:00:06]} 18. Bxh6 {[%emt 0:04:27]} Re8 {[%emt 0:09:16]} 19. Qg5 {[%emt 0:03:57]} e5 {[%emt 0:02:11]} 20. Qxh5 {[%emt 0:00:47]} e4 {[%emt 0:00:05]} 21. Qd1 {[%emt 0:05:01]} exd3 {[%emt 0:05:42]} 22. Qxd3 {[%emt 0:00:14]} Bxc5 {[%emt 0:00:46]} 23. Bd2 {[%emt 0:02:00]} Qd6 {[%emt 0:06:24]} 24. Qf3 {[%emt 0:02:39]} Kg8 {[%emt 0:01:03]} 25. Rad1 {[%emt 0:00:16]} Re4 {[%emt 0:01:49]} 26. Bc3 {[%emt 0:01:02]} Rae8 {[%emt 0:02:33]} 27. Rd3 {[%emt 0:00:49]} Qe6 {[%emt 0:01:13]} 28. Rfd1 {[%emt 0:00:37]} Re2 {[%emt 0:05:34]} 29. Qxd5 {[%emt 0:00:04]} Bxf2+ {[%emt 0:00:34]} 30. Kh2 {[%emt 0:00:55]} Qxd5 {[%emt 0:03:11]} 31. Rxd5 {[%emt 0:00:01]} R2e3 {[%emt 0:00:29]} 32. Rg5 {[%emt 0:01:00]} Be1 {[%emt 0:01:31]} 1/2-1/2

[Event "1st Grandiscacchi Cattolica 2022"]
[Site "Cattolica"]
[Date "2022.03.06"]
[Round "7.8"]
[White "Nikolov, Momchil"]
[Black "Lodici, Lorenzo"]
[Result "0-1"]
[ECO "A61"]
[WhiteElo "2501"]
[BlackElo "2537"]
[Annotator "ChessBase"]
[PlyCount "92"]
[EventDate "2022.03.03"]
[EventType "swiss"]
[EventCountry "ITA"]
[SourceTitle "playchess.com"]
[Source "ChessBase"]
[SourceQuality "1"]
[TimeControl "5400+30"]

1. d4 {[%emt 0:04:14]} Nf6 {[%emt 0:01:29]} 2. c4 {[%emt 0:00:15]} e6 {[%emt 0:00:05]} 3. Nf3 {[%emt 0:00:19]} c5 {[%emt 0:00:04]} 4. d5 {[%emt 0:00:23]} exd5 {[%emt 0:00:04]} 5. cxd5 {[%emt 0:00:07]} d6 {[%emt 0:00:02]} 6. Nc3 {[%emt 0:00:24]} g6 {[%emt 0:00:04]} 7. h3 {[%emt 0:00:19]} a6 {[%emt 0:00:04]} 8. a4 {[%emt 0:00:14]} Qe7 {[%emt 0:00:02]} 9. Bf4 {[%emt 0:05:38]} Bg7 {[%emt 0:00:05]} 10. e3 {[%emt 0:00:15]} Nbd7 {[%emt 0:00:25]} 11. Be2 {[%emt 0:00:48]} O-O {[%emt 0:00:34]} 12. O-O {[%emt 0:00:17]} Rb8 {[%emt 0:06:56]} 13. Bh2 {[%emt 0:02:20]} Ne8 {[%emt 0:00:39]} 14. Nd2 {[%emt 0:03:02]} f5 {[%emt 0:04:34]} 15. Nc4 {[%emt 0:07:45]} b6 {[%emt 0:05:57]} 16. Qc2 {[%emt 0:02:28]} Ne5 {[%emt 0:00:48]} 17. Rab1 {[%emt 0:03:44]} Nxc4 {[%emt 0:12:14]} 18. Bxc4 {[%emt 0:00:07]} Nc7 {[%emt 0:00:03]} 19. b4 {[%emt 0:00:53]} Bd7 {[%emt 0:00:46]} 20. bxc5 {[%emt 0:28:12]} bxc5 {[%emt 0:04:06]} 21. Ne2 {[%emt 0:08:15]} a5 {[%emt 0:19:56]} 22. Nf4 {[%emt 0:02:48]} Rb4 {[%emt 0:00:19]} 23. Nd3 {[%emt 0:04:37]} Bxa4 {[%emt 0:06:24]} 24. Qa2 {[%emt 0:01:07]} Bb5 {[%emt 0:00:18]} 25. Bxb5 {[%emt 0:05:39]} Nxb5 {[%emt 0:08:22]} 26. Qxa5 {[%emt 0:07:24]} Rxb1 {[%emt 0:00:17]} 27. Rxb1 {[%emt 0:00:02]} Nc3 {[%emt 0:00:05]} 28. Re1 {[%emt 0:04:46]} Nxd5 {[%emt 0:03:10]} 29. Qa6 {[%emt 0:06:20]} Rd8 {[%emt 0:02:58]} 30. Rb1 {[%emt 0:01:20]} Qe4 {[%emt 0:03:28]} 31. Rc1 {[%emt 0:00:02]} Nc3 {[%emt 0:03:48]} 32. Kh1 {[%emt 0:00:29]} g5 {[%emt 0:04:08]} 33. Bg3 {[%emt 0:00:57]} Qd5 {[%emt 0:02:58]} 34. Qb6 {[%emt 0:01:01]} Rd7 {[%emt 0:00:48]} 35. Nb2 {[%emt 0:00:12]} Kf7 {[%emt 0:11:27]} 36. Ra1 {[%emt 0:00:29]} Ne4 {[%emt 0:00:27]} 37. Rd1 {[%emt 0:00:59]} Qb7 {[%emt 0:00:16]} 38. Qxb7 {[%emt 0:00:29]} Rxb7 {[%emt 0:00:01]} 39. Nc4 {[%emt 0:00:01]} Ke6 {[%emt 0:00:10]} 40. Kh2 {[%emt 0:00:39]} d5 {[%emt 0:00:10]} 41. Nd2 {[%emt 0:00:27]} Nxd2 {[%emt 0:01:02]} 42. Rxd2 {[%emt 0:00:03]} Rb2 {[%emt 0:00:33]} 43. Rd3 {[%emt 0:00:07]} Be5 {[%emt 0:00:55]} 44. Bxe5 {[%emt 0:01:53]} Kxe5 {[%emt 0:00:01]} 45. Kg3 {[%emt 0:00:01]} Ke4 {[%emt 0:00:48]} 46. Ra3 {[%emt 0:00:03]} f4+ {[%emt 0:00:08]} 0-1

[Event "1st Grandiscacchi Cattolica 2022"]
[Site "Cattolica"]
[Date "2022.03.06"]
[Round "7.9"]
[White "Kamalidenova, Meruert"]
[Black "Mirzoev, Emil"]
[Result "1-0"]
[ECO "C70"]
[WhiteElo "2362"]
[BlackElo "2460"]
[Annotator "ChessBase"]
[PlyCount "127"]
[EventDate "2022.03.03"]
[EventType "swiss"]
[EventCountry "ITA"]
[SourceTitle "playchess.com"]
[Source "ChessBase"]
[SourceQuality "1"]
[TimeControl "5400+30"]

1. e4 {[%emt 0:00:06]} e5 {[%emt 0:01:00]} 2. Nf3 {[%emt 0:00:09]} Nc6 {[%emt 0:00:11]} 3. Bb5 {[%emt 0:00:35]} a6 {[%emt 0:00:21]} 4. Ba4 {[%emt 0:00:23]} Bc5 {[%emt 0:00:36]} 5. O-O {[%emt 0:01:02]} d6 {[%emt 0:02:31]} 6. c3 {[%emt 0:03:12]} Bd7 {[%emt 0:00:54]} 7. d4 {[%emt 0:03:21]} Ba7 {[%emt 0:00:14]} 8. Bg5 {[%emt 0:03:32]} f6 {[%emt 0:09:46]} 9. Be3 {[%emt 0:00:52]} Nge7 {[%emt 0:00:09]} 10. b4 {[%emt 0:06:12]} O-O {[%emt 0:03:19]} 11. Bb3+ {[%emt 0:03:07]} Kh8 {[%emt 0:00:17]} 12. dxe5 {[%emt 0:05:13]} fxe5 {[%emt 0:04:34]} 13. Ng5 {[%emt 0:07:01]} Qe8 {[%emt 0:00:36]} 14. Ne6 {[%emt 0:00:19]} Bxe6 {[%emt 0:01:03]} 15. Bxe6 {[%emt 0:02:29]} Bxe3 {[%emt 0:04:59]} 16. fxe3 {[%emt 0:00:34]} Qg6 {[%emt 0:00:27]} 17. Qg4 {[%emt 0:02:31]} Rxf1+ {[%emt 0:34:18]} 18. Kxf1 {[%emt 0:00:09]} Qxg4 {[%emt 0:03:08]} 19. Bxg4 {[%emt 0:00:06]} Ng8 {[%emt 0:02:01]} 20. Nd2 {[%emt 0:02:48]} Nf6 {[%emt 0:00:06]} 21. Be6 {[%emt 0:05:26]} a5 {[%emt 0:00:44]} 22. b5 {[%emt 0:03:11]} Nd8 {[%emt 0:00:05]} 23. Bb3 {[%emt 0:03:54]} g6 {[%emt 0:04:53]} 24. a4 {[%emt 0:02:54]} Kg7 {[%emt 0:01:06]} 25. Ke2 {[%emt 0:01:32]} Kf8 {[%emt 0:02:19]} 26. h3 {[%emt 0:05:58]} Ke7 {[%emt 0:01:20]} 27. g4 {[%emt 0:00:33]} Ne6 {[%emt 0:02:17]} 28. Bxe6 {[%emt 0:04:23]} Kxe6 {[%emt 0:00:15]} 29. c4 {[%emt 0:00:10]} Rh8 {[%emt 0:10:44]} 30. Rc1 {[%emt 0:03:23]} b6 {[%emt 0:00:49]} 31. Rf1 {[%emt 0:00:57]} g5 {[%emt 0:04:10]} 32. Kd3 {[%emt 0:10:45]} h5 {[%emt 0:02:59]} 33. Rf5 {[%emt 0:03:24]} hxg4 {[%emt 0:00:16]} 34. hxg4 {[%emt 0:00:05]} Rh2 {[%emt 0:02:00]} 35. Nf3 {[%emt 0:04:22]} Ra2 {[%emt 0:01:23]} 36. Rxg5 {[%emt 0:00:43]} Ra3+ {[%emt 0:00:26]} 37. Ke2 {[%emt 0:00:28]} Ra2+ {[%emt 0:00:17]} 38. Kd3 {[%emt 0:01:30]} Ra3+ {[%emt 0:00:27]} 39. Ke2 {[%emt 0:00:02]} Nxe4 {[%emt 0:00:21]} 40. Rg7 {[%emt 0:00:52]} Rxa4 {[%emt 0:00:43]} 41. Rxc7 {[%emt 0:01:07]} Ra2+ {[%emt 0:00:13]} 42. Kd3 {[%emt 0:02:49]} Nf2+ {[%emt 0:01:48]} 43. Kc3 {[%emt 0:00:04]} Nxg4 {[%emt 0:00:47]} 44. Ng5+ {[%emt 0:00:20]} Kf5 {[%emt 0:00:23]} 45. Nf7 {[%emt 0:00:06]} Nxe3 {[%emt 0:00:46]} 46. Nxd6+ {[%emt 0:00:31]} Ke6 {[%emt 0:00:19]} 47. Rc6 {[%emt 0:03:10]} a4 {[%emt 0:01:40]} 48. Rxb6 {[%emt 0:01:09]} a3 {[%emt 0:00:00]} 49. Kd3 {[%emt 0:01:14]} Nf5 {[%emt 0:00:28]} 50. Ne4+ {[%emt 0:00:38]} Ke7 {[%emt 0:00:13]} 51. Ra6 {[%emt 0:01:11]} Nd4 {[%emt 0:00:29]} 52. Nc3 {[%emt 0:00:57]} Ra1 {[%emt 0:00:09]} 53. Ke4 {[%emt 0:01:39]} Nb3 {[%emt 0:00:35]} 54. Kxe5 {[%emt 0:00:37]} Rc1 {[%emt 0:00:56]} 55. Nd5+ {[%emt 0:00:21]} Kd8 {[%emt 0:00:38]} 56. Rxa3 {[%emt 0:00:14]} Nd2 {[%emt 0:00:02]} 57. Ra8+ {[%emt 0:00:55]} Kd7 {[%emt 0:00:01]} 58. Ra4 {[%emt 0:01:28]} Nb3 {[%emt 0:00:29]} 59. Ra7+ {[%emt 0:00:47]} Kc8 {[%emt 0:00:01]} 60. Ne7+ {[%emt 0:00:56]} Kb8 {[%emt 0:00:00]} 61. Nc6+ {[%emt 0:02:34]} Kc8 62. b6 {[%emt 0:00:00]} Re1+ {[%emt 0:00:02]} 63. Kf4 {[%emt 0:00:00]} Rf1+ {[%emt 0:00:08]} 64. Kg3 {[%emt 0:00:00]} 1-0

[Event "1st Grandiscacchi Cattolica 2022"]
[Site "Cattolica"]
[Date "2022.03.06"]
[Round "7.10"]
[White "Assaubayeva, Bibisara"]
[Black "Willow, Jonah B"]
[Result "0-1"]
[ECO "D24"]
[WhiteElo "2434"]
[BlackElo "2365"]
[Annotator "ChessBase"]
[PlyCount "58"]
[EventDate "2022.03.03"]
[EventType "swiss"]
[EventCountry "ITA"]
[SourceTitle "playchess.com"]
[Source "ChessBase"]
[SourceQuality "1"]
[TimeControl "5400+30"]

1. d4 {[%emt 0:02:51]} Nf6 {[%emt 0:00:23]} 2. c4 {[%emt 0:00:13]} e6 {[%emt 0:00:10]} 3. Nf3 {[%emt 0:00:22]} d5 {[%emt 0:00:22]} 4. Nc3 {[%emt 0:00:49]} dxc4 {[%emt 0:00:17]} 5. Bg5 {[%emt 0:00:42]} a6 {[%emt 0:00:43]} 6. e4 {[%emt 0:04:40]} b5 {[%emt 0:01:14]} 7. e5 {[%emt 0:01:09]} h6 {[%emt 0:00:08]} 8. Bh4 {[%emt 0:01:26]} g5 {[%emt 0:00:11]} 9. Nxg5 {[%emt 0:01:17]} hxg5 {[%emt 0:00:44]} 10. Bxg5 {[%emt 0:00:03]} Nbd7 {[%emt 0:00:06]} 11. exf6 {[%emt 0:07:42]} Bb7 {[%emt 0:00:43]} 12. Qd2 {[%emt 0:11:09]} Nxf6 {[%emt 0:04:06]} 13. f3 {[%emt 0:10:40]} Be7 {[%emt 0:05:25]} 14. O-O-O {[%emt 0:01:09]} Qd7 {[%emt 0:02:22]} 15. Bxf6 {[%emt 0:07:54]} Bxf6 {[%emt 0:00:09]} 16. Ne4 {[%emt 0:00:10]} Bxe4 {[%emt 0:03:15]} 17. fxe4 {[%emt 0:00:02]} Rd8 {[%emt 0:11:38]} 18. d5 {[%emt 0:03:12]} c3 {[%emt 0:18:11]} 19. bxc3 {[%emt 0:05:32]} b4 {[%emt 0:00:40]} 20. cxb4 {[%emt 0:03:43]} Qd6 {[%emt 0:08:24]} 21. Bc4 {[%emt 0:03:49]} Qe5 {[%emt 0:00:59]} 22. Qc2 {[%emt 0:01:46]} Rh4 {[%emt 0:06:27]} 23. Rhe1 {[%emt 0:06:41]} Rxh2 {[%emt 0:02:00]} 24. Re2 {[%emt 0:02:09]} Kf8 {[%emt 0:02:55]} 25. Qb3 {[%emt 0:05:45]} Rh4 {[%emt 0:02:06]} 26. Kb1 {[%emt 0:03:22]} c6 {[%emt 0:04:03]} 27. Rde1 {[%emt 0:10:41]} cxd5 {[%emt 0:02:28]} 28. Bxa6 {[%emt 0:00:17]} Rxe4 {[%emt 0:04:56]} 29. Re3 {[%emt 0:03:43]} Rd7 {[%emt 0:02:59]} 0-1